fUSD/lending_fUSD_20241001
["ID","MTS","AMOUNT","RATE_DAILY","PERIOD"]
[339660919,1727820681339,-151.0,0.000138,2]
[339660920,1727820681348,-151.0,0.000138,2]
[339660921,1727820681358,-151.0,0.000138,2]
[339660922,1727820681367,-151.0,0.000138,2]
[339660923,1727820681376,-151.0,0.000138,2]
[339660924,1727820681386,-151.0,0.000138,2]
[339660925,1727820681396,-151.0,0.000138,2]
[339660926,1727820681405,-151.0,0.000138,2]
[339660927,1727820681414,-151.0,0.000138,2]
[339660928,1727820681424,-151.112416,0.000138,2]
[339660929,1727820681433,-870.244677,0.000138,2]
[339660930,1727820681442,-870.244677,0.000138,2]
[339660931,1727820681451,-151.0,0.000138,2]
[339660932,1727820681461,-151.0,0.000138,2]
[339660933,1727820681470,-151.0,0.000138,2]
[339660934,1727820681480,-151.0,0.000138,2]
[339660935,1727820681490,-151.0,0.000138,2]
[339660936,1727820681499,-151.0,0.000138,2]
[339660937,1727820681508,-151.0,0.000138,2]
[339660938,1727820681518,-151.0,0.000138,2]
[339660939,1727820681527,-151.0,0.000138,2]
[339660940,1727820681536,-151.0,0.000138,2]
[339660941,1727820681546,-151.0,0.000138,2]
[339660942,1727820681555,-151.0,0.000138,2]
[339660943,1727820681565,-151.0,0.000138,2]
[339660944,1727820681575,-151.0,0.000138,2]
[339660945,1727820681584,-151.0,0.000138,2]
[339660946,1727820681593,-151.0,0.000138,2]
[339660947,1727820681602,-151.0,0.000138,2]
[339660948,1727820681612,-151.0,0.000138,2]
[339660949,1727820681625,-151.0,0.000138,2]
[339660950,1727820681634,-151.0,0.000138,2]
[339660951,1727820681643,-151.0,0.000138,2]
[339660952,1727820681652,-151.0,0.000138,2]
[339660953,1727820681662,-151.0,0.000138,2]
[339660954,1727820681671,-151.0,0.000138,2]
[339660955,1727820681681,-151.0,0.000138,2]
[339660956,1727820681693,-151.0,0.000138,2]
[339660957,1727820681702,-151.0,0.000138,2]
[339660958,1727820681711,-151.0,0.000138,2]
[339660959,1727820681720,-151.0,0.000138,2]
[339660960,1727820681730,-194.184528,0.000138,2]
[339660961,1727820681740,-230.111838,0.000138,2]
[339660962,1727820681749,-367.583254,0.000138,2]
[339660963,1727820681758,-609187.048665,0.000138,3]
[339660964,1727820681767,-367.583254,0.000138,2]
[339660965,1727820681776,-151.0,0.000138,2]
[339660966,1727820681785,-151.0,0.000138,2]
[339660967,1727820681794,-151.0,0.000138,2]
[339660968,1727820681803,-151.0,0.000138,2]
[339660969,1727820681814,-151.0,0.000138,2]
[339660970,1727820681823,-151.0,0.000138,2]
[339660971,1727820681835,-151.0,0.000138,2]
[339660972,1727820681846,-151.0,0.000138,2]
[339660973,1727820681855,-151.0,0.000138,2]
[339660974,1727820681864,-151.0,0.000138,2]
[339660975,1727820681873,-151.0,0.000138,2]
[339660976,1727820681883,-161.716854,0.000138,2]
[339660977,1727820681893,-169.6,0.00013814,2]
[339660978,1727820681902,-460.818612,0.00013815,2]
[339660979,1727820681912,-15178.61,0.00013816,2]
[339660980,1727820681921,-151.0,0.000139,2]
[339660981,1727820681930,-151.0,0.000139,2]
[339660982,1727820681941,-151.0,0.000139,2]
[339660983,1727820681951,-151.0,0.000139,2]
[339660984,1727820681960,-151.0,0.000139,2]
[339660985,1727820681970,-188.121366,0.000139,2]
[339660986,1727820681980,-151.0,0.000139,2]
[339660987,1727820681989,-151.0,0.000139,2]
[339660988,1727820681998,-151.0,0.000139,2]
[339660989,1727820682007,-266.842498,0.000139,2]
[339660990,1727820682016,-151.694094,0.000139,2]
[339660991,1727820682025,-151.0,0.000139,2]
[339660992,1727820682036,-151.0,0.000139,2]
[339660993,1727820682046,-151.0,0.000139,2]
[339660994,1727820682055,-151.0,0.000139,2]
[339660995,1727820682064,-151.0,0.000139,2]
[339660996,1727820682073,-151.0,0.000139,2]
[339660997,1727820682082,-151.0,0.000139,2]
[339660998,1727820682091,-151.0,0.000139,2]
[339660999,1727820682100,-151.0,0.000139,2]
[339661000,1727820682109,-870.244677,0.000139,2]
[339661001,1727820682118,-870.244677,0.000139,2]
[339661002,1727820682128,-151.0,0.000139,2]
[339661003,1727820682137,-231.095868,0.000139,2]
[339661004,1727820682146,-151.0,0.000139,2]
[339661005,1727820682155,-151.0,0.000139,2]
[339661006,1727820682165,-151.0,0.000139,2]
[339661007,1727820682174,-154.1,0.000139,2]
[339661008,1727820682183,-151.0,0.000139,2]
[339661009,1727820682192,-151.0,0.000139,2]
[339661010,1727820682201,-151.0,0.000139,2]
[339661011,1727820682210,-151.0,0.000139,2]
[339661012,1727820682219,-151.0,0.000139,2]
[339661013,1727820682229,-151.0,0.000139,2]
[339661014,1727820682238,-151.0,0.000139,2]
[339661015,1727820682247,-151.0,0.000139,2]
[339661016,1727820682256,-151.0,0.000139,2]
[339661017,1727820682265,-151.0,0.000139,2]
[339661018,1727820682274,-151.0,0.000139,2]
[339661019,1727820682283,-151.0,0.000139,2]
[339661020,1727820682292,-151.0,0.000139,2]
[339661021,1727820682302,-151.0,0.000139,2]
[339661022,1727820682312,-151.0,0.000139,2]
[339661023,1727820682321,-151.0,0.000139,2]
[339661024,1727820682330,-151.0,0.000139,2]
[339661025,1727820682339,-151.0,0.000139,2]
[339661026,1727820682349,-151.0,0.000139,2]
[339661027,1727820682358,-151.0,0.000139,2]
[339661028,1727820682372,-151.0,0.000139,2]
[339661029,1727820682382,-151.0,0.000139,2]
[339661030,1727820682391,-151.0,0.000139,2]
[339661031,1727820682400,-367.583254,0.000139,2]
[339661032,1727820682411,-367.583254,0.000139,2]
[339661033,1727820682420,-151.0,0.000139,2]
[339661034,1727820682430,-626504.492292,0.000139,3]
[339661035,1727820682439,-205.832596,0.000139,2]
[339661036,1727820682448,-151.0,0.000139,2]
[339661037,1727820682458,-151.0,0.000139,2]
[339661038,1727820682468,-151.0,0.000139,2]
[339661039,1727820682479,-151.0,0.000139,2]
[339661040,1727820682488,-151.0,0.000139,2]
[339661041,1727820682498,-151.0,0.000139,2]
[339661042,1727820682508,-151.0,0.000139,2]
[339661043,1727820682518,-151.0,0.000139,2]
[339661044,1727820682528,-150.0,0.00014059,2]
[339661045,1727820682538,-150.0,0.0001442,2]
[339661046,1727820682549,-169.6,0.00014499,2]
[339661047,1727820682559,-1000.0,0.00014524,2]
[339661048,1727820682569,-158.31,0.00014586,2]
[339661049,1727820682579,-272.21,0.000146,2]
[339661050,1727820682589,-335.31203094,0.00014757,2]
[339661051,1727820682599,-1002.92,0.0001478,2]
[339661052,1727820682609,-150.0,0.0001478,2]
[339661053,1727820682623,-3000.0,0.000148,2]
[339661054,1727820682633,-10000.0,0.00014934,2]
[339661055,1727820682643,-200.0,0.00015,2]
[339661056,1727820682653,-200.0,0.00015,2]
[339661057,1727820682663,-200.0,0.00015,2]
[339661058,1727820682673,-200.0,0.00015,2]
[339661059,1727820682683,-200.0,0.00015,2]
[339661060,1727820682694,-200.0,0.00015,2]
[339661061,1727820682705,-200.0,0.00015,2]
[339661062,1727820682715,-200.0,0.00015,2]
[339661063,1727820682726,-200.0,0.00015,2]
[339661064,1727820682736,-200.0,0.00015,2]
[339661065,1727820682746,-200.0,0.00015,2]
[339661066,1727820682755,-200.0,0.00015,2]
[339661067,1727820682765,-200.0,0.00015,2]
[339661068,1727820682775,-200.0,0.00015,2]
[339661069,1727820682784,-200.0,0.00015,2]
[339661070,1727820682794,-200.0,0.00015,2]
[339661071,1727820682803,-200.0,0.00015,2]
[339661072,1727820682812,-200.0,0.00015,2]
[339661073,1727820682822,-200.0,0.00015,2]
[339661074,1727820682832,-200.0,0.00015,2]
[339661075,1727820682849,-200.0,0.00015,2]
[339661076,1727820682857,-200.0,0.00015,2]
[339661077,1727820682866,-200.0,0.00015,2]
[339661078,1727820682876,-200.0,0.00015,2]
[339661079,1727820682885,-200.0,0.00015,2]
[339661080,1727820682895,-1676.0,0.00015,2]
[339661081,1727820682905,-200.0,0.00015,2]
[339661082,1727820682914,-200.0,0.00015,2]
[339661083,1727820682924,-10409.0,0.00015,2]
[339661084,1727820682933,-350.0,0.00015,2]
[339661085,1727820682943,-150.0,0.00015,15]
[339661086,1727820682952,-300.0,0.00015068,2]
[339661087,1727820682961,-150.0,0.00015141,2]
[339661088,1727820682970,-150.0,0.00015159,2]
[339661089,1727820682980,-150.0,0.0001527,2]
[339661090,1727820682989,-150.0,0.0001527,2]
[339661091,1727820682999,-426.424,0.0001527,2]
[339661092,1727820683008,-271.24,0.00015279,2]
[339661093,1727820683018,-400.22,0.00015312,2]
[339661094,1727820683027,-150.0,0.00015501,2]
[339661095,1727820683037,-1038.472555,0.0001577,2]
[339661096,1727820683047,-1000.0,0.00015845,2]
[339661097,1727820683056,-150.0,0.00015862,2]
[339661098,1727820683066,-224.29,0.00015884,2]
[339661099,1727820683075,-152.42,0.00015987,2]
[339661100,1727820683084,-200.0,0.00016,3]
[339661101,1727820683094,-335.31203094,0.00016043,2]
[339661102,1727820683103,-5878.89,0.00016116,2]
[339661103,1727820683112,-3000.0,0.000162,2]
[339661104,1727820683122,-150.0,0.00016222,2]
[339661105,1727820683133,-3182.00572309,0.00016267,2]
[339661106,1727820683150,-300.0,0.00016438,2]
[339661107,1727820683167,-150.0,0.00016583,2]
[339661108,1727820683179,-400.22,0.00016844,2]
[339661109,1727820683195,-150.0,0.00016943,2]
[339661110,1727820683209,-200.0,0.00017,4]
[339661111,1727820683225,-400.0,0.00017,2]
[339661112,1727820683242,-500.0,0.00017181,2]
[339661113,1727820683258,-500.0,0.0001719,2]
[339661114,1727820683271,-500.0,0.00017198,2]
[339661115,1727820683287,-500.0,0.00017207,2]
[339661116,1727820683303,-500.0,0.00017216,2]
[339661117,1727820683317,-500.0,0.00017225,2]
[339661118,1727820683330,-500.0,0.00017234,2]
[339661119,1727820683344,-500.0,0.00017242,2]
[339661120,1727820683359,-500.0,0.00017251,2]
[339661121,1727820683374,-500.0,0.0001726,2]
[339661122,1727820683391,-500.0,0.00017269,2]
[339661123,1727820683407,-500.0,0.00017278,2]
[339661124,1727820683419,-500.0,0.00017286,2]
[339661125,1727820683430,-500.0,0.00017295,2]
[339661126,1727820683444,-227.0,0.000173,2]
[339661127,1727820683460,-150.0,0.00017304,2]
[339661128,1727820683472,-500.0,0.00017304,2]
[339661129,1727820683495,-335.31203094,0.00017329,2]
[339661130,1727820683511,-3000.0,0.000175,2]
[339661131,1727820683527,-271.24,0.00017543,2]
[339661132,1727820683543,-150.0,0.00017664,2]
[339661133,1727820683559,-1220.85,0.000177,7]
[339661134,1727820683574,-200.0,0.00018,4]
[339661135,1727820683589,-150.0,0.00018025,2]
[339661136,1727820683603,-150.0,0.00018159,2]
[339661137,1727820683620,-940.0,0.00018166,2]
[339661138,1727820683634,-155.0,0.0001821,2]
[339661139,1727820683649,-400.22,0.00018375,2]
[339661140,1727820683663,-150.0,0.00018385,2]
[339661141,1727820683677,-335.31203094,0.00018614,2]
[339661142,1727820683692,-150.0,0.00018746,2]
[339661143,1727820683705,-3000.0,0.000189,2]
[339661144,1727820683719,-200.0,0.00019,5]
[339661145,1727820683736,-450.0,0.00019,2]
[339661146,1727820683750,-3182.00572309,0.00019,2]
[339661147,1727820683763,-150.0,0.00019106,2]
[339661148,1727820683777,-150.0,0.00019467,2]
[339661149,1727820683792,-40713.0,0.00019575,2]
[339661150,1727820683806,-271.24,0.00019807,2]
[339661151,1727820683819,-150.0,0.00019827,2]
[339661152,1727820683832,-500.0,0.00019886,2]
[339661153,1727820683845,-500.0,0.00019894,2]
[339661154,1727820683858,-335.31203094,0.000199,2]
[339661155,1727820683872,-500.0,0.00019903,2]
[339661156,1727820683885,-500.0,0.00019912,2]
[339661157,1727820683898,-500.0,0.00019921,2]
[339661158,1727820683911,-500.0,0.0001993,2]
[339661159,1727820683923,-500.0,0.00019938,2]
[339661160,1727820683936,-500.0,0.00019947,2]
[339661161,1727820683949,-500.0,0.00019956,2]
[339661162,1727820683962,-500.0,0.00019965,2]
[339661163,1727820683975,-500.0,0.00019965,2]
[339661164,1727820683991,-500.0,0.00019974,2]
[339661165,1727820684003,-500.0,0.00019974,2]
[339661166,1727820684015,-500.0,0.00019982,2]
[339661167,1727820684028,-500.0,0.00019982,2]
[339661168,1727820684040,-500.0,0.00019991,2]
[339661169,1727820684053,-500.0,0.00019991,2]
[339661170,1727820684065,-336.72386942,0.0002,2]
[339661171,1727820684078,-200.0,0.0002,6]
[339661172,1727820684090,-500.0,0.0002,2]
[339661173,1727820684106,-370.58759187,0.0002,2]
[339661174,1727820684119,-954.27113519,0.0002,2]
[339661175,1727820684131,-42823.51304446,0.0002,2]
[339661176,1727820684144,-500.0,0.0002,2]
[339661177,1727820684157,-150.0,0.00020188,2]
[339661178,1727820684170,-3000.0,0.000203,2]
[339661179,1727820684182,-650.39986496,0.000204,2]
[339661180,1727820684195,-206.0,0.0002053,2]
[339661181,1727820684207,-174.12,0.00020548,2]
[339661182,1727820684220,-150.0,0.00020548,2]
[339661183,1727820684236,-200.0,0.00021,7]
[339661184,1727820684248,-500.0,0.00021,2]
[339661185,1727820684260,-150.0,0.00021159,2]
[339661186,1727820684272,-354.05355019,0.000215,2]
[339661187,1727820684284,-14724.79,0.00021544,2]
[339661188,1727820684297,-3000.0,0.000216,2]
[339661189,1727820684309,-3182.00572309,0.00021733,2]
[339661190,1727820684322,-151.0,0.00021798,2]
[339661191,1727820684334,-1242.0,0.000219,2]
[339661192,1727820684347,-162.0,0.000219,2]
[339661193,1727820684359,-3358.05,0.00021918,2]
[339661194,1727820684371,-200.0,0.00022,8]
[339661195,1727820684383,-271.24,0.00022071,2]
[339661196,1727820684395,-206.0,0.0002219,2]
[339661197,1727820684408,-500.0,0.000224,120]
[339661198,1727820684420,-500.0,0.000224,120]
[339661199,1727820684433,-200.0,0.000224,120]
[339661200,1727820684445,-1000.0,0.00022466,2]
[339661201,1727820684458,-1017.37,0.000226,14]
[339661202,1727820684470,-200.0,0.00023,8]
[339661203,1727820684484,-500.0,0.00023,120]
[339661204,1727820684496,-2843.0,0.00023,2]
[339661205,1727820684509,-550.0,0.00023,2]
[339661206,1727820684521,-200.0,0.00023,2]
[339661207,1727820684534,-733.363,0.00023258,3]
[339661208,1727820684546,-159.769,0.00023258,3]
[339661209,1727820684558,-161.35,0.00023562,2]
[339661210,1727820684569,-670.54818617,0.000237,2]
[339661211,1727820684582,-4000.0,0.00023724,2]
[339661212,1727820684595,-206.0,0.0002386,2]
[339661213,1727820684607,-200.0,0.00024,9]
[339661214,1727820684623,-1000.0,0.00024,120]
[339661215,1727820684635,-500.0,0.00024043,120]
[339661216,1727820684647,-271.24,0.00024335,2]
[339661217,1727820684661,-2843.09254798,0.000244,2]
[339661218,1727820684673,-3182.00572309,0.00024467,2]
[339661219,1727820684684,-500.0,0.00024467,2]
[339661220,1727820684698,-500.0,0.00024467,2]
[339661221,1727820684710,-500.0,0.00024467,2]
[339661222,1727820684722,-500.0,0.00024467,2]
[339661223,1727820684737,-500.0,0.00024467,2]
[339661224,1727820684750,-500.0,0.00024467,2]
[339661225,1727820684762,-500.0,0.00024467,2]
[339661226,1727820684774,-500.0,0.00024467,2]
[339661227,1727820684786,-500.0,0.00024467,2]
[339661228,1727820684799,-500.0,0.00024467,2]
[339661229,1727820684818,-500.0,0.00024467,2]
[339661230,1727820684831,-500.0,0.00024467,2]
[339661231,1727820684843,-500.0,0.00024467,2]
[339661232,1727820684855,-500.0,0.00024467,2]
[339661233,1727820684867,-500.0,0.00024467,2]
[339661234,1727820684880,-500.0,0.00024467,2]
[339661235,1727820684892,-500.0,0.00024467,2]
[339661236,1727820684904,-500.0,0.00024467,2]
[339661237,1727820684916,-500.0,0.00024467,2]
[339661238,1727820684929,-500.0,0.00024467,2]
[339661239,1727820684941,-500.0,0.00024467,2]
[339661240,1727820684953,-500.0,0.00024467,2]
[339661241,1727820684966,-500.0,0.00024467,2]
[339661242,1727820684979,-500.0,0.00024467,2]
[339661243,1727820684996,-500.0,0.00024467,2]
[339661244,1727820685008,-500.0,0.00024467,2]
[339661245,1727820685021,-500.0,0.00024467,2]
[339661246,1727820685034,-500.0,0.00024467,2]
[339661247,1727820685046,-500.0,0.00024467,2]
[339661248,1727820685058,-500.0,0.00024467,2]
[339661249,1727820685071,-500.0,0.00024467,2]
[339661250,1727820685083,-500.0,0.00024467,2]
[339661251,1727820685096,-500.0,0.00024467,2]
[339661252,1727820685109,-500.0,0.00024467,2]
[339661253,1727820685121,-500.0,0.00024467,2]
[339661254,1727820685133,-500.0,0.00024467,2]
[339661255,1727820685145,-500.0,0.00024467,2]
[339661256,1727820685156,-500.0,0.00024467,2]
[339661257,1727820685170,-500.0,0.00024467,2]
[339661258,1727820685182,-500.0,0.00024467,2]
[339661259,1727820685194,-500.0,0.00024467,2]
[339661260,1727820685206,-500.0,0.00024467,2]
[339661261,1727820685218,-500.0,0.00024467,2]
[339661262,1727820685233,-500.0,0.00024467,2]
[339661263,1727820685245,-500.0,0.00024467,2]
[339661264,1727820685256,-500.0,0.00024467,2]
[339661265,1727820685269,-500.0,0.00024467,2]
[339661266,1727820685280,-500.0,0.00024467,2]
[339661267,1727820685293,-500.0,0.00024467,2]
[339661268,1727820685306,-500.0,0.00024467,2]
[339661269,1727820685319,-500.0,0.00024467,2]
[339661270,1727820685331,-500.0,0.00024467,2]
[339661271,1727820685343,-500.0,0.00024467,2]
[339661272,1727820685355,-500.0,0.00024467,2]
[339661273,1727820685367,-500.0,0.00024467,2]
[339661274,1727820685379,-500.0,0.00024467,2]
[339661275,1727820685391,-500.0,0.00024467,2]
[339661276,1727820685403,-500.0,0.00024467,2]
[339661277,1727820685415,-500.0,0.00024467,2]
[339661278,1727820685428,-500.0,0.00024467,2]
[339661279,1727820685440,-500.0,0.00024467,2]
[339661280,1727820685453,-500.0,0.00024467,2]
[339661281,1727820685465,-500.0,0.00024467,2]
[339661282,1727820685477,-500.0,0.00024467,2]
[339661283,1727820685491,-500.0,0.00024467,2]
[339661284,1727820685503,-500.0,0.00024467,2]
[339661285,1727820685515,-500.0,0.00024467,2]
[339661286,1727820685527,-500.0,0.00024467,2]
[339661287,1727820685539,-500.0,0.00024467,2]
[339661288,1727820685551,-500.0,0.00024467,2]
[339661289,1727820685562,-500.0,0.00024467,2]
[339661290,1727820685575,-500.0,0.00024467,2]
[339661291,1727820685587,-500.0,0.00024467,2]
[339661292,1727820685599,-500.0,0.00024467,2]
[339661293,1727820685612,-500.0,0.00024467,2]
[339661294,1727820685627,-500.0,0.00024467,2]
[339661295,1727820685639,-500.0,0.00024467,2]
[339661296,1727820685651,-500.0,0.00024467,2]
[339661297,1727820685663,-500.0,0.00024467,2]
[339661298,1727820685675,-500.0,0.00024467,2]
[339661299,1727820685687,-500.0,0.00024467,2]
[339661300,1727820685700,-500.0,0.00024467,2]
[339661301,1727820685712,-500.0,0.00024467,2]
[339661302,1727820685724,-500.0,0.00024467,2]
[339661303,1727820685736,-500.0,0.00024467,2]
[339661304,1727820685748,-500.0,0.00024467,2]
[339661305,1727820685760,-500.0,0.00024467,2]
[339661306,1727820685772,-500.0,0.00024467,2]
[339661307,1727820685784,-500.0,0.00024467,2]
[339661308,1727820685795,-500.0,0.00024467,2]
[339661309,1727820685808,-500.0,0.00024467,2]
[339661310,1727820685820,-500.0,0.00024467,2]
[339661311,1727820685831,-500.0,0.00024467,2]
[339661312,1727820685843,-500.0,0.00024467,2]
[339661313,1727820685855,-500.0,0.00024467,2]
[339661314,1727820685867,-500.0,0.00024467,2]
[339661315,1727820685879,-500.0,0.00024467,2]
[339661316,1727820685891,-500.0,0.00024467,2]
[339661317,1727820685904,-500.0,0.00024467,2]
[339661318,1727820685917,-500.0,0.00024467,2]
[339661319,1727820685929,-500.0,0.00024467,2]
[339661320,1727820685941,-500.0,0.00024467,2]
[339661321,1727820685953,-500.0,0.00024467,2]
[339661322,1727820685965,-500.0,0.00024467,2]
[339661323,1727820685977,-500.0,0.00024467,2]
[339661324,1727820685990,-500.0,0.00024467,2]
[339661325,1727820686002,-500.0,0.00024467,2]
[339661326,1727820686013,-500.0,0.00024467,2]
[339661327,1727820686026,-500.0,0.00024467,2]
[339661328,1727820686039,-500.0,0.00024467,2]
[339661329,1727820686050,-500.0,0.00024467,2]
[339661330,1727820686062,-500.0,0.00024467,2]
[339661331,1727820686074,-500.0,0.00024467,2]
[339661332,1727820686085,-500.0,0.00024467,2]
[339661333,1727820686097,-500.0,0.00024467,2]
[339661334,1727820686109,-500.0,0.00024467,2]
[339661335,1727820686120,-500.0,0.00024467,2]
[339661336,1727820686132,-500.0,0.00024467,2]
[339661337,1727820686143,-500.0,0.00024467,2]
[339661338,1727820686155,-500.0,0.00024467,2]
[339661339,1727820686167,-500.0,0.00024467,2]
[339661340,1727820686179,-500.0,0.00024467,2]
[339661341,1727820686190,-500.0,0.00024467,2]
[339661342,1727820686202,-500.0,0.00024467,2]
[339661343,1727820686213,-500.0,0.00024467,2]
[339661344,1727820686225,-500.0,0.00024467,2]
[339661345,1727820686239,-500.0,0.00024467,2]
[339661346,1727820686250,-500.0,0.00024467,2]
[339661347,1727820686262,-500.0,0.00024467,2]
[339661348,1727820686273,-500.0,0.00024467,2]
[339661349,1727820686285,-500.0,0.00024467,2]
[339661350,1727820686297,-500.0,0.00024467,2]
[339661351,1727820686309,-500.0,0.00024467,2]
[339661352,1727820686322,-500.0,0.00024467,2]
[339661353,1727820686333,-500.0,0.00024467,2]
[339661354,1727820686345,-500.0,0.00024467,2]
[339661355,1727820686357,-500.0,0.00024467,2]
[339661356,1727820686369,-500.0,0.00024467,2]
[339661357,1727820686381,-500.0,0.00024467,2]
[339661358,1727820686393,-500.0,0.00024467,2]
[339661359,1727820686404,-500.0,0.00024467,2]
[339661360,1727820686416,-500.0,0.00024467,2]
[339661361,1727820686428,-500.0,0.00024467,2]
[339661362,1727820686439,-500.0,0.00024467,2]
[339661363,1727820686451,-500.0,0.00024467,2]
[339661364,1727820686463,-500.0,0.00024467,2]
[339661365,1727820686475,-500.0,0.00024467,2]
[339661366,1727820686488,-500.0,0.00024467,2]
[339661367,1727820686500,-500.0,0.00024467,2]
[339661368,1727820686512,-500.0,0.00024467,2]
[339661369,1727820686524,-500.0,0.00024467,2]
[339661370,1727820686536,-500.0,0.00024467,2]
[339661371,1727820686963,-500.0,0.00024467,2]
[339661372,1727820686990,-500.0,0.00024467,2]
[339661373,1727820686999,-500.0,0.00024467,2]
[339661374,1727820687009,-500.0,0.00024467,2]
[339661375,1727820687018,-500.0,0.00024467,2]
[339661376,1727820687028,-500.0,0.00024467,2]
[339661377,1727820687038,-500.0,0.00024467,2]
[339661378,1727820687047,-500.0,0.00024467,2]
[339661379,1727820687057,-500.0,0.00024467,2]
[339661380,1727820687067,-500.0,0.00024467,2]
[339661381,1727820687077,-500.0,0.00024467,2]
[339661382,1727820687086,-500.0,0.00024467,2]
[339661383,1727820687097,-500.0,0.00024467,2]
[339661384,1727820687107,-500.0,0.00024467,2]
[339661385,1727820687119,-500.0,0.00024467,2]
[339661386,1727820687131,-500.0,0.00024467,2]
[339661387,1727820687142,-500.0,0.00024467,2]
[339661388,1727820687152,-500.0,0.00024467,2]
[339661389,1727820687161,-500.0,0.00024467,2]
[339661390,1727820687171,-500.0,0.00024467,2]
[339661391,1727820687180,-500.0,0.00024467,2]
[339661392,1727820687189,-500.0,0.00024467,2]
[339661393,1727820687199,-500.0,0.00024467,2]
[339661394,1727820687209,-500.0,0.00024467,2]
[339661395,1727820687220,-500.0,0.00024467,2]
[339661396,1727820687229,-500.0,0.00024467,2]
[339661397,1727820687240,-500.0,0.00024467,2]
[339661398,1727820687249,-500.0,0.00024467,2]
[339661399,1727820687259,-500.0,0.00024467,2]
[339661400,1727820687268,-500.0,0.00024467,2]
[339661401,1727820687277,-500.0,0.00024467,2]
[339661402,1727820687287,-500.0,0.00024467,2]
[339661403,1727820687296,-500.0,0.00024467,2]
[339661404,1727820687306,-500.0,0.00024467,2]
[339661405,1727820687316,-500.0,0.00024467,2]
[339661406,1727820687325,-500.0,0.00024467,2]
[339661407,1727820687335,-500.0,0.00024467,2]
[339661408,1727820687345,-500.0,0.00024467,2]
[339661409,1727820687356,-500.0,0.00024467,2]
[339661410,1727820687366,-500.0,0.00024467,2]
[339661411,1727820687376,-500.0,0.00024467,2]
[339661412,1727820687386,-500.0,0.00024467,2]
[339661413,1727820687398,-500.0,0.00024467,2]
[339661414,1727820687408,-500.0,0.00024467,2]
[339661415,1727820687417,-500.0,0.00024467,2]
[339661416,1727820687430,-500.0,0.00024467,2]
[339661417,1727820687440,-500.0,0.00024467,2]
[339661418,1727820687451,-500.0,0.00024467,2]